[Event "Late-Titled-Tuesday-Blitz-December-26-2023"]
[Site "Chess.com"]
[Date "2023.12.26"]
[Round "5"]
[White "MITerryble"]
[Black "TheSilmarils"]
[Result "1-0"]
[WhiteElo "3035"]
[BlackElo "2842"]
[TimeControl "180+1"]
[EndTime "14:56:34 PST"]
[Termination "MITerryble won by resignation"]

1. Nf3 {[%clk 0:03:00.9]} 1... Nf6 {[%clk 0:02:59.6]} 2. b3 {[%clk 0:03:00.9]}
2... g6 {[%clk 0:02:50.3]} 3. Bb2 {[%clk 0:03:01.2]} 3... Bg7 {[%clk 0:02:51.2]}
4. g3 {[%clk 0:03:00.3]} 4... b6 {[%clk 0:02:51]} 5. Bg2 {[%clk 0:03:00.5]} 5...
Bb7 {[%clk 0:02:51.7]} 6. O-O {[%clk 0:03:00.9]} 6... O-O {[%clk 0:02:52.4]} 7.
d4 {[%clk 0:02:58.7]} 7... c5 {[%clk 0:02:49.6]} 8. c4 {[%clk 0:02:48.9]} 8...
cxd4 {[%clk 0:02:47.8]} 9. Qxd4 {[%clk 0:02:32.8]} 9... d6 {[%clk 0:02:27.6]}
10. Rd1 {[%clk 0:02:20.5]} 10... Nbd7 {[%clk 0:02:27.5]} 11. Qf4 {[%clk
0:02:14]} 11... Nc5 {[%clk 0:02:15.2]} 12. Nc3 {[%clk 0:02:07.7]} 12... Nfe4
{[%clk 0:01:47.4]} 13. Rac1 {[%clk 0:02:05.6]} 13... Rc8 {[%clk 0:01:46.5]} 14.
Qe3 {[%clk 0:01:59.1]} 14... Nxc3 {[%clk 0:01:39.9]} 15. Bxc3 {[%clk 0:01:58.9]}
15... Bxc3 {[%clk 0:01:38.6]} 16. Rxc3 {[%clk 0:01:58.6]} 16... Rc7 {[%clk
0:01:31.8]} 17. Qh6 {[%clk 0:01:56.8]} 17... Bxf3 {[%clk 0:01:07.2]} 18. Bxf3
{[%clk 0:01:51.4]} 18... Qb8 {[%clk 0:01:00.7]} 19. h4 {[%clk 0:01:43.6]} 19...
Nd7 {[%clk 0:00:43.9]} 20. h5 {[%clk 0:01:39.2]} 20... Nf6 {[%clk 0:00:44]} 21.
hxg6 {[%clk 0:01:26.7]} 21... fxg6 {[%clk 0:00:44.9]} 22. a4 {[%clk 0:01:14.9]}
22... Rc5 {[%clk 0:00:44.4]} 23. Re3 {[%clk 0:01:12.5]} 23... Qe8 {[%clk
0:00:39.9]} 24. Rxd6 {[%clk 0:00:42.7]} 24... exd6 {[%clk 0:00:39.3]} 25. Rxe8
{[%clk 0:00:43.6]} 25... Rxe8 {[%clk 0:00:40]} 26. Qf4 {[%clk 0:00:43.1]} 26...
Re6 {[%clk 0:00:32.8]} 27. b4 {[%clk 0:00:39.1]} 27... Rce5 {[%clk 0:00:33]} 28.
Qd4 {[%clk 0:00:32.8]} 28... h5 {[%clk 0:00:28.9]} 29. Kg2 {[%clk 0:00:24.6]}
29... Kg7 {[%clk 0:00:27.7]} 30. a5 {[%clk 0:00:23]} 30... bxa5 {[%clk
0:00:27.2]} 31. b5 {[%clk 0:00:20.6]} 31... Rc5 {[%clk 0:00:21.7]} 32. Qa1
{[%clk 0:00:12]} 32... Rxc4 {[%clk 0:00:16.8]} 33. Bd5 {[%clk 0:00:10.8]} 33...
Rce4 {[%clk 0:00:09.7]} 34. Bxe6 {[%clk 0:00:10.8]} 34... Rxe6 {[%clk
0:00:09.9]} 35. e3 {[%clk 0:00:09.2]} 35... d5 {[%clk 0:00:09.7]} 36. Qxa5
{[%clk 0:00:09.3]} 36... Re7 {[%clk 0:00:10.6]} 37. Qc3 {[%clk 0:00:07]} 37...
Rd7 {[%clk 0:00:10.6]} 38. Qd4 {[%clk 0:00:06.2]} 38... Kf7 {[%clk 0:00:10.9]}
39. Qc5 {[%clk 0:00:06.3]} 39... Re7 {[%clk 0:00:11.3]} 40. Qc6 {[%clk
0:00:06.3]} 40... Rd7 {[%clk 0:00:11.7]} 41. Kf3 {[%clk 0:00:05.2]} 41... Kg7
{[%clk 0:00:12.3]} 42. Ke2 {[%clk 0:00:04.8]} 42... d4 {[%clk 0:00:11.9]} 43.
exd4 {[%clk 0:00:04.8]} 43... Rxd4 {[%clk 0:00:12.8]} 44. Qc7+ {[%clk
0:00:04.1]} 44... Rd7 {[%clk 0:00:13.3]} 45. Qc5 {[%clk 0:00:04]} 45... Kf7
{[%clk 0:00:13.3]} 46. Kf3 {[%clk 0:00:03.9]} 46... Rd3+ {[%clk 0:00:13.2]} 47.
Kg2 {[%clk 0:00:04.2]} 47... Rd7 {[%clk 0:00:14.1]} 48. Qc6 {[%clk 0:00:04.7]}
48... Kg7 {[%clk 0:00:14.3]} 49. Qe6 {[%clk 0:00:04.6]} 49... Rf7 {[%clk
0:00:13.9]} 50. Qe5 {[%clk 0:00:04.7]} 50... Rd7 {[%clk 0:00:14.1]} 51. f3
{[%clk 0:00:04.8]} 51... Kf7 {[%clk 0:00:14.5]} 52. Qc5 {[%clk 0:00:03.2]} 52...
Rd2+ {[%clk 0:00:14.4]} 53. Kh3 {[%clk 0:00:03.4]} 53... Rd7 {[%clk 0:00:15.3]}
54. Qc4+ {[%clk 0:00:03.8]} 54... Kg7 {[%clk 0:00:15.5]} 55. Qc3 {[%clk
0:00:03.6]} 55... Kf7 {[%clk 0:00:16.1]} 56. Qb3+ {[%clk 0:00:04.2]} 56... Kg7
{[%clk 0:00:16.4]} 57. Qb2 {[%clk 0:00:04.7]} 57... Kf7 {[%clk 0:00:16.5]} 58.
Qa2+ {[%clk 0:00:04.3]} 58... Kg7 {[%clk 0:00:16.6]} 59. Qa1 {[%clk 0:00:04.9]}
59... Kf7 {[%clk 0:00:16.9]} 60. Qe5 {[%clk 0:00:04.2]} 60... Re7 {[%clk
0:00:16.5]} 61. Qd4 {[%clk 0:00:04.1]} 61... Rd7 {[%clk 0:00:17]} 62. Qc4+
{[%clk 0:00:04.2]} 62... Kg7 {[%clk 0:00:17.6]} 63. Qc6 {[%clk 0:00:04.9]} 63...
Kf7 {[%clk 0:00:17.7]} 64. g4 {[%clk 0:00:03.3]} 64... hxg4+ {[%clk 0:00:17.8]}
65. fxg4 {[%clk 0:00:04.2]} 65... Re7 {[%clk 0:00:13.8]} 66. g5 {[%clk
0:00:03.7]} 66... Ne4 {[%clk 0:00:12.8]} 67. Qd5+ {[%clk 0:00:03.7]} 67... Kg7
{[%clk 0:00:13.1]} 68. Qd4+ {[%clk 0:00:04.1]} 68... Kf7 {[%clk 0:00:13.2]} 69.
Kg4 {[%clk 0:00:04.7]} 69... Ke8 {[%clk 0:00:07.7]} 70. Qd5 {[%clk 0:00:03.1]}
70... Nf2+ {[%clk 0:00:07.3]} 71. Kg3 {[%clk 0:00:02.1]} 71... Ne4+ {[%clk
0:00:07.2]} 72. Kf4 {[%clk 0:00:02.6]} 72... Nf2 {[%clk 0:00:07.3]} 73. Qg8+
{[%clk 0:00:02.8]} 73... Kd7 {[%clk 0:00:07.8]} 74. Qxg6 {[%clk 0:00:03.3]}
74... Nh3+ {[%clk 0:00:05.5]} 75. Kg4 {[%clk 0:00:03.1]} 75... Nf2+ {[%clk
0:00:06]} 76. Kf3 {[%clk 0:00:03.7]} 76... Nh3 {[%clk 0:00:06.5]} 77. Qf5+
{[%clk 0:00:03.8]} 77... Kd6 {[%clk 0:00:06.9]} 78. Qxh3 {[%clk 0:00:04.7]}
78... Rf7+ {[%clk 0:00:07.6]} 79. Kg4 {[%clk 0:00:05]} 1-0

[Event "Late-Titled-Tuesday-Blitz-December-26-2023"]
[Site "Chess.com"]
[Date "2023.12.26"]
[Round "5"]
[White "Ali_rastbod"]
[Black "Aguiar94"]
[Result "0-1"]
[WhiteElo "2720"]
[BlackElo "2579"]
[TimeControl "180+1"]
[EndTime "14:56:46 PST"]
[Termination "Aguiar94 won by resignation"]

1. g3 {[%clk 0:02:57.8]} 1... d5 {[%clk 0:02:58.6]} 2. Bg2 {[%clk 0:02:58.4]}
2... Nf6 {[%clk 0:02:58.5]} 3. c4 {[%clk 0:02:58]} 3... d4 {[%clk 0:02:58.2]} 4.
d3 {[%clk 0:02:56.7]} 4... c5 {[%clk 0:02:58.5]} 5. e4 {[%clk 0:02:56]} 5...
dxe3 {[%clk 0:02:53.2]} 6. Bxe3 {[%clk 0:02:54.8]} 6... e5 {[%clk 0:02:43.3]} 7.
h3 {[%clk 0:02:54.9]} 7... Be7 {[%clk 0:02:39.9]} 8. Nc3 {[%clk 0:02:55.3]} 8...
O-O {[%clk 0:02:39.8]} 9. Nf3 {[%clk 0:02:55.8]} 9... Nc6 {[%clk 0:02:39.7]} 10.
g4 {[%clk 0:02:52.1]} 10... Re8 {[%clk 0:02:28.9]} 11. a3 {[%clk 0:02:51]} 11...
Bf8 {[%clk 0:02:19.3]} 12. O-O {[%clk 0:02:50.2]} 12... h5 {[%clk 0:02:18.2]}
13. g5 {[%clk 0:02:49.9]} 13... Nh7 {[%clk 0:02:17.8]} 14. Ne4 {[%clk
0:02:46.8]} 14... b6 {[%clk 0:02:14.5]} 15. Ng3 {[%clk 0:02:21.4]} 15... g6
{[%clk 0:02:13.1]} 16. Qd2 {[%clk 0:02:09.9]} 16... Be6 {[%clk 0:02:03.4]} 17.
Rad1 {[%clk 0:02:06.9]} 17... Qd7 {[%clk 0:01:54.4]} 18. Kh2 {[%clk 0:02:07]}
18... Rad8 {[%clk 0:01:53.7]} 19. Rfe1 {[%clk 0:02:07.2]} 19... Qc7 {[%clk
0:01:46]} 20. Ne4 {[%clk 0:01:53.6]} 20... Bxc4 {[%clk 0:01:42.8]} 21. Qc3
{[%clk 0:01:33.7]} 21... Bd5 {[%clk 0:01:35]} 22. h4 {[%clk 0:01:28.5]} 22...
Nd4 {[%clk 0:01:34.3]} 23. Kg1 {[%clk 0:01:23.4]} 23... Qd7 {[%clk 0:01:18.9]}
24. Bxd4 {[%clk 0:01:17.2]} 24... exd4 {[%clk 0:01:08.3]} 25. Qd2 {[%clk
0:01:16.4]} 25... Qg4 {[%clk 0:01:08.5]} 26. Re2 {[%clk 0:01:08.1]} 26... Bxe4
{[%clk 0:01:05.1]} 27. dxe4 {[%clk 0:01:09]} 27... Rxe4 {[%clk 0:01:05.2]} 28.
Rxe4 {[%clk 0:01:09.8]} 28... Qxe4 {[%clk 0:01:06]} 29. Re1 {[%clk 0:01:10.7]}
29... Qg4 {[%clk 0:01:05.8]} 30. Qd3 {[%clk 0:01:03.9]} 30... Bd6 {[%clk
0:01:04.2]} 31. Re4 {[%clk 0:00:59.9]} 31... Qf5 {[%clk 0:01:00.8]} 32. Qe2
{[%clk 0:00:56.7]} 32... Nf8 {[%clk 0:00:57.4]} 33. Nd2 {[%clk 0:00:56.5]} 33...
Ne6 {[%clk 0:00:54.2]} 34. Qa6 {[%clk 0:00:39.2]} 34... Bb8 {[%clk 0:00:45.4]}
35. Nf1 {[%clk 0:00:26.9]} 35... Nf4 {[%clk 0:00:44]} 36. Ng3 {[%clk 0:00:27.4]}
36... Qg4 {[%clk 0:00:42.4]} 37. Qb5 {[%clk 0:00:22.8]} 37... Rf8 {[%clk
0:00:26.2]} 38. Re8 {[%clk 0:00:20.6]} 38... Qxh4 {[%clk 0:00:22.2]} 39. Rxf8+
{[%clk 0:00:20]} 39... Kxf8 {[%clk 0:00:23.1]} 40. Qd7 {[%clk 0:00:17.9]} 40...
Kg7 {[%clk 0:00:17.9]} 41. Qe7 {[%clk 0:00:11.8]} 41... Nxg2 {[%clk 0:00:09.5]}
42. Qf6+ {[%clk 0:00:11.7]} 42... Kg8 {[%clk 0:00:10]} 43. Qd8+ {[%clk
0:00:09.6]} 43... Kh7 {[%clk 0:00:10.3]} 44. Qxb8 {[%clk 0:00:06.2]} 44... Nf4
{[%clk 0:00:09]} 45. Qxa7 {[%clk 0:00:05.6]} 45... Kg7 {[%clk 0:00:07.8]} 46.
Qe7 {[%clk 0:00:03.8]} 46... Qxg5 {[%clk 0:00:08.1]} 47. Qxg5 {[%clk 0:00:03.8]}
47... Nh3+ {[%clk 0:00:08.3]} 48. Kg2 {[%clk 0:00:04.5]} 48... Nxg5 {[%clk
0:00:09.2]} 49. Ne2 {[%clk 0:00:05.1]} 49... Kf6 {[%clk 0:00:09.1]} 50. b4
{[%clk 0:00:04.5]} 50... Ke5 {[%clk 0:00:08.9]} 51. bxc5 {[%clk 0:00:05.2]}
51... bxc5 {[%clk 0:00:08.8]} 52. a4 {[%clk 0:00:06.1]} 52... Ne6 {[%clk
0:00:08.6]} 53. a5 {[%clk 0:00:06.3]} 53... Nc7 {[%clk 0:00:08.1]} 54. Kf3
{[%clk 0:00:06.7]} 54... g5 {[%clk 0:00:07.4]} 55. Ng3 {[%clk 0:00:05.8]} 55...
h4 {[%clk 0:00:06.9]} 56. Nh5 {[%clk 0:00:05.7]} 56... f5 {[%clk 0:00:07.4]} 57.
Ke2 {[%clk 0:00:05.3]} 57... c4 {[%clk 0:00:07.7]} 58. f4+ {[%clk 0:00:05.3]}
58... gxf4 {[%clk 0:00:07.5]} 59. Kf3 {[%clk 0:00:06.1]} 59... c3 {[%clk
0:00:08.2]} 60. Nxf4 {[%clk 0:00:07]} 60... c2 {[%clk 0:00:08.3]} 61. Nd3+
{[%clk 0:00:07.4]} 61... Kd5 {[%clk 0:00:07.9]} 62. Nb4+ {[%clk 0:00:07.1]}
62... Kc4 {[%clk 0:00:07.9]} 63. Nxc2 {[%clk 0:00:08]} 63... Kc3 {[%clk
0:00:07.9]} 64. Ne1 {[%clk 0:00:07.1]} 64... d3 {[%clk 0:00:08.1]} 65. Ng2
{[%clk 0:00:05.7]} 65... h3 {[%clk 0:00:06.1]} 66. Ne3 {[%clk 0:00:05.4]} 66...
h2 {[%clk 0:00:05.7]} 67. Kg2 {[%clk 0:00:05.7]} 67... f4 {[%clk 0:00:06.6]} 68.
Nd1+ {[%clk 0:00:05.9]} 68... Kc2 {[%clk 0:00:06.5]} 69. Nf2 {[%clk 0:00:06.5]}
69... d2 {[%clk 0:00:06.1]} 70. Kxh2 {[%clk 0:00:07]} 70... d1=Q {[%clk
0:00:05.6]} 71. Nxd1 {[%clk 0:00:07.6]} 71... Kxd1 {[%clk 0:00:06.5]} 72. Kg2
{[%clk 0:00:08.2]} 72... Ke2 {[%clk 0:00:07.1]} 73. a6 {[%clk 0:00:08.7]} 73...
f3+ {[%clk 0:00:06.4]} 74. Kg3 {[%clk 0:00:08.6]} 74... f2 {[%clk 0:00:07.3]}
75. a7 {[%clk 0:00:09.4]} 75... f1=Q {[%clk 0:00:07.2]} 76. a8=Q {[%clk
0:00:10.3]} 76... Nxa8 {[%clk 0:00:07.4]} 0-1

[Event "Late-Titled-Tuesday-Blitz-December-26-2023"]
[Site "Chess.com"]
[Date "2023.12.26"]
[Round "5"]
[White "mightysmasher"]
[Black "fugadelafuga"]
[Result "0-1"]
[WhiteElo "2566"]
[BlackElo "2444"]
[TimeControl "180+1"]
[EndTime "14:56:57 PST"]
[Termination "fugadelafuga won by checkmate"]

1. e4 {[%clk 0:03:00.9]} 1... c5 {[%clk 0:02:46]} 2. c3 {[%clk 0:02:59.5]} 2...
Nf6 {[%clk 0:02:45.5]} 3. e5 {[%clk 0:02:59.4]} 3... Nd5 {[%clk 0:02:46.1]} 4.
d4 {[%clk 0:03:00.1]} 4... cxd4 {[%clk 0:02:47]} 5. cxd4 {[%clk 0:03:01]} 5...
Nc6 {[%clk 0:02:47.5]} 6. Nf3 {[%clk 0:03:01.5]} 6... d6 {[%clk 0:02:47.9]} 7.
Bc4 {[%clk 0:03:02]} 7... Nb6 {[%clk 0:02:47.9]} 8. Bb5 {[%clk 0:03:02.1]} 8...
dxe5 {[%clk 0:02:45.8]} 9. Nxe5 {[%clk 0:03:01.4]} 9... Bd7 {[%clk 0:02:46.1]}
10. Nxd7 {[%clk 0:03:01.1]} 10... Qxd7 {[%clk 0:02:45.3]} 11. O-O {[%clk
0:03:01.3]} 11... e6 {[%clk 0:02:42.2]} 12. Nc3 {[%clk 0:03:00.3]} 12... Be7
{[%clk 0:02:39.4]} 13. Be3 {[%clk 0:02:59.7]} 13... O-O {[%clk 0:02:37.8]} 14.
Qd2 {[%clk 0:02:35.9]} 14... a6 {[%clk 0:02:28.3]} 15. Bd3 {[%clk 0:02:32.7]}
15... Nd5 {[%clk 0:02:24.3]} 16. Rad1 {[%clk 0:02:30.8]} 16... Bf6 {[%clk
0:02:14.6]} 17. Bb1 {[%clk 0:02:28.6]} 17... Nxc3 {[%clk 0:01:48.2]} 18. bxc3
{[%clk 0:02:27.9]} 18... Ne7 {[%clk 0:01:48.5]} 19. Qc2 {[%clk 0:02:24.7]} 19...
g6 {[%clk 0:01:43.4]} 20. Rfe1 {[%clk 0:02:21.6]} 20... Rac8 {[%clk 0:01:38.3]}
21. c4 {[%clk 0:02:11.3]} 21... Nf5 {[%clk 0:01:26.1]} 22. d5 {[%clk 0:02:01.3]}
22... exd5 {[%clk 0:01:23.9]} 23. Rxd5 {[%clk 0:01:58.2]} 23... Nxe3 {[%clk
0:01:11.6]} 24. Rxd7 {[%clk 0:01:42.4]} 24... Nxc2 {[%clk 0:01:11.1]} 25. Bxc2
{[%clk 0:01:43.3]} 25... Rxc4 {[%clk 0:01:03.5]} 26. Bb3 {[%clk 0:01:43]} 26...
Rb4 {[%clk 0:00:59.9]} 27. g3 {[%clk 0:01:42.5]} 27... a5 {[%clk 0:00:55.8]} 28.
Re3 {[%clk 0:01:38.8]} 28... a4 {[%clk 0:00:52.8]} 29. Bd5 {[%clk 0:01:38.5]}
29... Rd4 {[%clk 0:00:46.4]} 30. Rf3 {[%clk 0:01:37.1]} 30... Kg7 {[%clk
0:00:45.1]} 31. Rd6 {[%clk 0:01:21.2]} 31... Be5 {[%clk 0:00:20.3]} 32. Rd7
{[%clk 0:01:19.4]} 32... Bf6 {[%clk 0:00:20.5]} 33. h3 {[%clk 0:01:18.3]} 33...
b5 {[%clk 0:00:20.3]} 34. g4 {[%clk 0:01:18.1]} 34... h6 {[%clk 0:00:20.9]} 35.
Kg2 {[%clk 0:01:17.5]} 35... b4 {[%clk 0:00:21.2]} 36. Kg3 {[%clk 0:01:14.6]}
36... b3 {[%clk 0:00:20.3]} 37. axb3 {[%clk 0:01:09.2]} 37... a3 {[%clk
0:00:20.7]} 38. b4 {[%clk 0:00:58.1]} 38... a2 {[%clk 0:00:19.7]} 39. Ra3 {[%clk
0:00:56.5]} 39... Rxd5 {[%clk 0:00:18.7]} 40. Rxd5 {[%clk 0:00:55.3]} 40... a1=Q
{[%clk 0:00:19]} 41. Rxa1 {[%clk 0:00:55.4]} 41... Bxa1 {[%clk 0:00:19.9]} 42.
b5 {[%clk 0:00:55.7]} 42... Rb8 {[%clk 0:00:19.8]} 43. f4 {[%clk 0:00:55.7]}
43... Kf6 {[%clk 0:00:20]} 44. Kf3 {[%clk 0:00:51.1]} 44... Ke6 {[%clk
0:00:19.9]} 45. Rc5 {[%clk 0:00:50.7]} 45... Bd4 {[%clk 0:00:20]} 46. Rc6+
{[%clk 0:00:49.5]} 46... Kd5 {[%clk 0:00:19.9]} 47. Rc7 {[%clk 0:00:48.3]} 47...
f6 {[%clk 0:00:19.8]} 48. Rh7 {[%clk 0:00:44]} 48... g5 {[%clk 0:00:19.2]} 49.
Rxh6 {[%clk 0:00:42.7]} 49... gxf4 {[%clk 0:00:18.6]} 50. Kxf4 {[%clk
0:00:39.6]} 50... Be5+ {[%clk 0:00:16]} 51. Kf5 {[%clk 0:00:39.3]} 51... Rxb5
{[%clk 0:00:15.4]} 52. Rh5 {[%clk 0:00:39.3]} 52... Rb4 {[%clk 0:00:14.9]} 53.
Kg6 {[%clk 0:00:38.5]} 53... Rf4 {[%clk 0:00:15.5]} 54. Rf5 {[%clk 0:00:37.8]}
54... Re4 {[%clk 0:00:11.8]} 55. g5 {[%clk 0:00:36.5]} 55... fxg5 {[%clk
0:00:12.3]} 56. Rxg5 {[%clk 0:00:36.2]} 56... Ke6 {[%clk 0:00:12.4]} 57. Kh5
{[%clk 0:00:35.1]} 57... Rf4 {[%clk 0:00:12.4]} 58. Rg6+ {[%clk 0:00:33.4]}
58... Kf7 {[%clk 0:00:11.9]} 59. Rg4 {[%clk 0:00:32.2]} 59... Rf2 {[%clk
0:00:10.5]} 60. Re4 {[%clk 0:00:29.4]} 60... Kf6 {[%clk 0:00:09]} 61. Rg4 {[%clk
0:00:29]} 61... Bf4 {[%clk 0:00:08.7]} 62. h4 {[%clk 0:00:27.3]} 62... Rf3
{[%clk 0:00:07.2]} 63. Rg6+ {[%clk 0:00:26.9]} 63... Kf7 {[%clk 0:00:06.6]} 64.
Rg4 {[%clk 0:00:27.3]} 64... Be5 {[%clk 0:00:06.5]} 65. Kh6 {[%clk 0:00:26.8]}
65... Bf6 {[%clk 0:00:06.6]} 66. Kh5 {[%clk 0:00:26.4]} 66... Rf5+ {[%clk
0:00:06.6]} 67. Kh6 {[%clk 0:00:26.2]} 67... Re5 {[%clk 0:00:06.9]} 68. h5
{[%clk 0:00:24.2]} 68... Re8 {[%clk 0:00:07.2]} 69. Rg7+ {[%clk 0:00:05.7]}
69... Bxg7+ {[%clk 0:00:06.4]} 70. Kg5 {[%clk 0:00:06.6]} 70... Bf6+ {[%clk
0:00:06.6]} 71. Kg4 {[%clk 0:00:07.2]} 71... Re5 {[%clk 0:00:06.8]} 72. Kf4
{[%clk 0:00:07.1]} 72... Rxh5 {[%clk 0:00:06.6]} 73. Kg4 {[%clk 0:00:08]} 73...
Kg6 {[%clk 0:00:07]} 74. Kg3 {[%clk 0:00:08.9]} 74... Kg5 {[%clk 0:00:07.1]} 75.
Kf3 {[%clk 0:00:09.1]} 75... Rh4 {[%clk 0:00:07.6]} 76. Kg3 {[%clk 0:00:09.3]}
76... Rg4+ {[%clk 0:00:07.6]} 77. Kf3 {[%clk 0:00:10.2]} 77... Kf5 {[%clk
0:00:08.3]} 78. Ke3 {[%clk 0:00:10.6]} 78... Rf4 {[%clk 0:00:08.8]} 79. Kd3
{[%clk 0:00:10.9]} 79... Re4 {[%clk 0:00:09.1]} 80. Kd2 {[%clk 0:00:11.4]} 80...
Bg5+ {[%clk 0:00:09.6]} 81. Kd3 {[%clk 0:00:12.3]} 81... Ke5 {[%clk 0:00:09.8]}
82. Kc3 {[%clk 0:00:12.8]} 82... Kd5 {[%clk 0:00:10.3]} 83. Kd3 {[%clk
0:00:13.7]} 83... Bf4 {[%clk 0:00:10.4]} 84. Kc3 {[%clk 0:00:13.9]} 84... Rd4
{[%clk 0:00:11]} 85. Kb3 {[%clk 0:00:14.6]} 85... Kc5 {[%clk 0:00:11.4]} 86. Kc3
{[%clk 0:00:15.5]} 86... Be5 {[%clk 0:00:12]} 87. Kb3 {[%clk 0:00:15.8]} 87...
Rc4 {[%clk 0:00:12.8]} 88. Ka3 {[%clk 0:00:16.3]} 88... Rb4 {[%clk 0:00:13.2]}
89. Ka2 {[%clk 0:00:16.6]} 89... Bd6 {[%clk 0:00:13.8]} 90. Ka3 {[%clk
0:00:16.7]} 90... Kb5 {[%clk 0:00:14.2]} 91. Ka2 {[%clk 0:00:16.9]} 91... Kc4
{[%clk 0:00:14.7]} 92. Ka1 {[%clk 0:00:17.1]} 92... Kc3 {[%clk 0:00:15]} 93. Ka2
{[%clk 0:00:17.6]} 93... Bc5 {[%clk 0:00:15.2]} 94. Ka3 {[%clk 0:00:16.4]} 94...
Kc2 {[%clk 0:00:15.3]} 95. Ka2 {[%clk 0:00:15.8]} 95... Ra4# {[%clk 0:00:16.2]}
0-1